fUSD/lending_fUSD_20240223
["ID","MTS","AMOUNT","RATE_DAILY","PERIOD"]
[314994032,1708719054366,-447.29,0.00028493,2]
[314994033,1708719054375,-500.0,0.00028493,2]
[314994034,1708719054385,-530.13,0.00028493,2]
[314994035,1708719054394,-500.0,0.00028493,2]
[314994036,1708719054403,-541.64,0.00028493,2]
[314994037,1708719054413,-500.0,0.00028493,2]
[314994038,1708719054422,-198.17,0.00028493,2]
[314994039,1708719054432,-500.0,0.00028493,2]
[314994040,1708719054441,-500.0,0.00028493,2]
[314994041,1708719054451,-500.0,0.00028493,2]
[314994042,1708719054460,-503.47,0.00028493,2]
[314994043,1708719054470,-749.44,0.00028493,2]
[314994044,1708719054480,-500.0,0.00028493,2]
[314994045,1708719054490,-500.0,0.00028493,2]
[314994046,1708719054499,-516.10250406,0.00028493,2]
[314994047,1708719054509,-500.0,0.00028493,2]
[314994048,1708719054518,-569.85,0.00028493,2]
[314994049,1708719054528,-500.0,0.00028493,2]
[314994050,1708719054537,-792.79,0.00028493,2]
[314994051,1708719054546,-670.47,0.00028493,2]
[314994052,1708719054555,-500.0,0.00028493,2]
[314994053,1708719054564,-620.91,0.00028493,2]
[314994054,1708719054574,-500.0,0.00028493,2]
[314994055,1708719054583,-500.0,0.00028493,2]
[314994056,1708719054593,-637.71,0.00028493,2]
[314994057,1708719054604,-500.0,0.00028493,2]
[314994058,1708719054613,-500.0,0.00028493,2]
[314994059,1708719054623,-616.52,0.00028493,2]
[314994060,1708719054632,-783.78,0.00028493,2]
[314994061,1708719054641,-500.0,0.00028493,2]
[314994062,1708719054651,-500.0,0.00028493,2]
[314994063,1708719054660,-1246.55,0.00028493,2]
[314994064,1708719054669,-345.66,0.00028493,2]
[314994065,1708719054678,-500.0,0.00028493,2]
[314994066,1708719054688,-500.0,0.00028493,2]
[314994067,1708719054697,-832.75,0.00028493,2]
[314994068,1708719054706,-634.09098394,0.00028493,2]
[314994069,1708719054715,-500.0,0.00028493,2]
[314994070,1708719054725,-1577.02,0.00028493,2]
[314994071,1708719054734,-894.62,0.00028493,2]
[314994072,1708719054743,-500.0,0.00028493,2]
[314994073,1708719054753,-500.0,0.00028493,2]
[314994074,1708719054762,-500.0,0.00028493,2]
[314994075,1708719054772,-711.78,0.00028493,2]
[314994076,1708719054781,-896.26,0.00028493,2]
[314994077,1708719054791,-500.0,0.00028493,2]
[314994078,1708719054800,-578.28,0.00028493,2]
[314994079,1708719054809,-2223.06,0.00028493,2]
[314994080,1708719054819,-640.46,0.00028493,2]
[314994081,1708719054828,-500.0,0.00028493,2]
[314994082,1708719054838,-500.0,0.00028493,2]
[314994083,1708719054848,-500.0,0.00028493,2]
[314994084,1708719054857,-500.0,0.00028493,2]
[314994085,1708719054867,-500.0,0.00028493,2]
[314994086,1708719054876,-403.4318319,0.00028493,2]
[314994087,1708719054886,-1048.34,0.00028493,2]
[314994088,1708719054895,-500.0,0.00028493,2]
[314994089,1708719054905,-1844.58,0.00028493,2]
[314994090,1708719054914,-1034.24,0.00028493,2]
[314994091,1708719054927,-500.0,0.00028493,2]
[314994092,1708719054937,-500.0,0.00028493,2]
[314994093,1708719054946,-2164.75,0.00028493,2]
[314994094,1708719054956,-1226.41,0.00028493,2]
[314994095,1708719054966,-4390.56,0.00028493,2]
[314994096,1708719054976,-500.0,0.00028493,2]
[314994097,1708719054985,-748.66,0.00028493,2]
[314994098,1708719054995,-500.0,0.00028493,2]
[314994099,1708719055004,-677.35,0.00028493,2]
[314994100,1708719055014,-518.09,0.00028493,2]
[314994101,1708719055023,-1055.01,0.00028505,2]
[314994102,1708719055032,-914.93,0.00028528,2]
[314994103,1708719055041,-500.0,0.0002863,2]
[314994104,1708719055050,-264.14,0.0002863,2]
[314994105,1708719055059,-530.13,0.0002863,2]
[314994106,1708719055068,-500.0,0.0002863,2]
[314994107,1708719055077,-500.0,0.0002863,2]
[314994108,1708719055086,-244.85,0.0002863,2]
[314994109,1708719055096,-500.0,0.0002863,2]
[314994110,1708719055105,-500.0,0.0002863,2]
[314994111,1708719055114,-749.44,0.0002863,2]
[314994112,1708719055123,-500.0,0.0002863,2]
[314994113,1708719055133,-500.0,0.0002863,2]
[314994114,1708719055142,-500.0,0.0002863,2]
[314994115,1708719055151,-569.85,0.0002863,2]
[314994116,1708719055160,-500.0,0.0002863,2]
[314994117,1708719055169,-792.79,0.0002863,2]
[314994118,1708719055178,-670.47,0.0002863,2]
[314994119,1708719055188,-500.0,0.0002863,2]
[314994120,1708719055198,-620.91,0.0002863,2]
[314994121,1708719055207,-500.0,0.0002863,2]
[314994122,1708719055217,-500.0,0.0002863,2]
[314994123,1708719055226,-637.71,0.0002863,2]
[314994124,1708719055236,-500.0,0.0002863,2]
[314994125,1708719055245,-500.0,0.0002863,2]
[314994126,1708719055255,-616.52,0.0002863,2]
[314994127,1708719055264,-783.78,0.0002863,2]
[314994128,1708719055274,-500.0,0.0002863,2]
[314994129,1708719055283,-500.0,0.0002863,2]
[314994130,1708719055293,-1246.55,0.0002863,2]
[314994131,1708719055302,-500.0,0.0002863,2]
[314994132,1708719055311,-500.0,0.0002863,2]
[314994133,1708719055320,-832.75,0.0002863,2]
[314994134,1708719055330,-500.0,0.0002863,2]
[314994135,1708719055339,-1577.02,0.0002863,2]
[314994136,1708719055348,-894.62,0.0002863,2]
[314994137,1708719055357,-500.0,0.0002863,2]
[314994138,1708719055367,-500.0,0.0002863,2]
[314994139,1708719055377,-500.0,0.0002863,2]
[314994140,1708719055386,-711.78,0.0002863,2]
[314994141,1708719055396,-896.26,0.0002863,2]
[314994142,1708719055405,-500.0,0.0002863,2]
[314994143,1708719055415,-578.28,0.0002863,2]
[314994144,1708719055425,-2223.06,0.0002863,2]
[314994145,1708719055434,-640.46,0.0002863,2]
[314994146,1708719055443,-500.0,0.0002863,2]
[314994147,1708719055453,-500.0,0.0002863,2]
[314994148,1708719055463,-500.0,0.0002863,2]
[314994149,1708719055472,-500.0,0.0002863,2]
[314994150,1708719055483,-500.0,0.0002863,2]
[314994151,1708719055493,-1048.34,0.0002863,2]
[314994152,1708719055502,-500.0,0.0002863,2]
[314994153,1708719055512,-1844.58,0.0002863,2]
[314994154,1708719055521,-1034.24,0.0002863,2]
[314994155,1708719055531,-500.0,0.0002863,2]
[314994156,1708719055540,-500.0,0.0002863,2]
[314994157,1708719055549,-2164.75,0.0002863,2]
[314994158,1708719055559,-1226.41,0.0002863,2]
[314994159,1708719055568,-4390.56,0.0002863,2]
[314994160,1708719055577,-500.0,0.0002863,2]
[314994161,1708719055587,-748.66,0.0002863,2]
[314994162,1708719055596,-500.0,0.0002863,2]
[314994163,1708719055607,-677.35,0.0002863,2]
[314994164,1708719055617,-1055.01,0.00028664,2]
[314994165,1708719055626,-914.93,0.00028668,2]
[314994166,1708719055635,-500.0,0.00028767,2]
[314994167,1708719055645,-530.13,0.00028767,2]
[314994168,1708719055654,-500.0,0.00028767,2]
[314994169,1708719055664,-500.0,0.00028767,2]
[314994170,1708719055673,-155.0,0.00028767,2]
[314994171,1708719055683,-501.01039976,0.00028767,2]
[314994172,1708719055693,-645.8,0.00028767,2]
[314994173,1708719055702,-749.44,0.00028767,2]
[314994174,1708719055712,-500.0,0.00028767,2]
[314994175,1708719055721,-500.0,0.00028767,2]
[314994176,1708719055730,-569.85,0.00028767,2]
[314994177,1708719055740,-500.0,0.00028767,2]
[314994178,1708719055750,-792.79,0.00028767,2]
[314994179,1708719055759,-670.47,0.00028767,2]
[314994180,1708719055768,-500.0,0.00028767,2]
[314994181,1708719055777,-620.91,0.00028767,2]
[314994182,1708719055786,-500.0,0.00028767,2]
[314994183,1708719055795,-482.24130688,0.00028767,2]
[314994184,1708719055805,-637.71,0.00028767,2]
[314994185,1708719055814,-500.0,0.00028767,2]
[314994186,1708719055823,-500.0,0.00028767,2]
[314994187,1708719055832,-616.52,0.00028767,2]
[314994188,1708719055841,-783.78,0.00028767,2]
[314994189,1708719055851,-500.0,0.00028767,2]
[314994190,1708719055860,-500.0,0.00028767,2]
[314994191,1708719055869,-1246.55,0.00028767,2]
[314994192,1708719055878,-308.35481818,0.00028767,2]
[314994193,1708719055888,-500.0,0.00028767,2]
[314994194,1708719055897,-832.75,0.00028767,2]
[314994195,1708719055907,-1577.02,0.00028767,2]
[314994196,1708719055916,-894.62,0.00028767,2]
[314994197,1708719055927,-500.0,0.00028767,2]
[314994198,1708719055938,-500.0,0.00028767,2]
[314994199,1708719055948,-500.0,0.00028767,2]
[314994200,1708719055957,-711.78,0.00028767,2]
[314994201,1708719055966,-896.26,0.00028767,2]
[314994202,1708719055976,-500.0,0.00028767,2]
[314994203,1708719055987,-578.28,0.00028767,2]
[314994204,1708719055996,-2223.06,0.00028767,2]
[314994205,1708719056006,-640.46,0.00028767,2]
[314994206,1708719056016,-500.0,0.00028767,2]
[314994207,1708719056025,-500.0,0.00028767,2]
[314994208,1708719056034,-500.0,0.00028767,2]
[314994209,1708719056044,-500.0,0.00028767,2]
[314994210,1708719056053,-1048.34,0.00028767,2]
[314994211,1708719056063,-500.0,0.00028767,2]
[314994212,1708719056072,-1844.58,0.00028767,2]
[314994213,1708719056081,-1034.24,0.00028767,2]
[314994214,1708719056090,-500.0,0.00028767,2]
[314994215,1708719056100,-437.61089818,0.00028767,2]
[314994216,1708719056109,-1226.41,0.00028767,2]
[314994217,1708719056119,-2164.75,0.00028767,2]
[314994218,1708719056128,-4390.56,0.00028767,2]
[314994219,1708719056137,-500.0,0.00028767,2]
[314994220,1708719056146,-748.66,0.00028767,2]
[314994221,1708719056155,-494.15,0.00028767,2]
[314994222,1708719056164,-677.35,0.00028767,2]
[314994223,1708719056173,-914.93,0.00028807,2]
[314994224,1708719056182,-1055.01,0.00028822,2]
[314994225,1708719056192,-811.19,0.00028831,2]
[314994226,1708719056201,-500.0,0.00028904,2]
[314994227,1708719056210,-530.13,0.00028904,2]
[314994228,1708719056219,-500.0,0.00028904,2]
[314994229,1708719056229,-500.0,0.00028904,2]
[314994230,1708719056239,-749.44,0.00028904,2]
[314994231,1708719056248,-213.35,0.00028904,2]
[314994232,1708719056257,-244.79,0.00028904,2]
[314994233,1708719056266,-569.85,0.00028904,2]
[314994234,1708719056275,-500.0,0.00028904,2]
[314994235,1708719056285,-792.79,0.00028904,2]
[314994236,1708719056294,-670.47,0.00028904,2]
[314994237,1708719056303,-620.91,0.00028904,2]
[314994238,1708719056313,-500.0,0.00028904,2]
[314994239,1708719056322,-637.71,0.00028904,2]
[314994240,1708719056331,-500.0,0.00028904,2]
[314994241,1708719056388,-616.52,0.00028904,2]
[314994242,1708719056397,-783.78,0.00028904,2]
[314994243,1708719056406,-500.0,0.00028904,2]
[314994244,1708719056416,-500.0,0.00028904,2]
[314994245,1708719056426,-1246.55,0.00028904,2]
[314994246,1708719056435,-500.0,0.00028904,2]
[314994247,1708719056444,-832.75,0.00028904,2]
[314994248,1708719056454,-1577.02,0.00028904,2]
[314994249,1708719056463,-894.62,0.00028904,2]
[314994250,1708719056472,-711.78,0.00028904,2]
[314994251,1708719056482,-896.26,0.00028904,2]
[314994252,1708719056491,-578.28,0.00028904,2]
[314994253,1708719056500,-2223.06,0.00028904,2]
[314994254,1708719056509,-640.46,0.00028904,2]
[314994255,1708719056518,-500.0,0.00028904,2]
[314994256,1708719056527,-500.0,0.00028904,2]
[314994257,1708719056536,-524.74901424,0.00028904,2]
[314994258,1708719056546,-1048.34,0.00028904,2]
[314994259,1708719056555,-500.0,0.00028904,2]
[314994260,1708719056564,-1844.58,0.00028904,2]
[314994261,1708719056573,-1034.24,0.00028904,2]
[314994262,1708719056582,-500.0,0.00028904,2]
[314994263,1708719056591,-1226.41,0.00028904,2]
[314994264,1708719056601,-2164.75,0.00028904,2]
[314994265,1708719056610,-4390.56,0.00028904,2]
[314994266,1708719056620,-748.66,0.00028904,2]
[314994267,1708719056629,-677.35,0.00028904,2]
[314994268,1708719056638,-914.93,0.00028946,2]
[314994269,1708719056647,-800.0,0.00028986,2]
[314994270,1708719056656,-200.0,0.00028986,2]
[314994271,1708719056664,-12153.34283844,0.00029,3]
[314994272,1708719056674,-850.0,0.00029,3]
[314994273,1708719056683,-500.0,0.00029041,2]
[314994274,1708719056692,-530.13,0.00029041,2]
[314994275,1708719056701,-500.0,0.00029041,2]
[314994276,1708719056710,-500.0,0.00029041,2]
[314994277,1708719056719,-749.44,0.00029041,2]
[314994278,1708719056727,-569.85,0.00029041,2]
[314994279,1708719056738,-611.16,0.00029041,2]
[314994280,1708719056747,-792.79,0.00029041,2]
[314994281,1708719056756,-670.47,0.00029041,2]
[314994282,1708719056765,-620.91,0.00029041,2]
[314994283,1708719056774,-500.0,0.00029041,2]
[314994284,1708719056782,-637.71,0.00029041,2]
[314994285,1708719056792,-259.59093901,0.00029041,2]
[314994286,1708719056801,-616.52,0.00029041,2]
[314994287,1708719056810,-783.78,0.00029041,2]
[314994288,1708719056818,-500.0,0.00029041,2]
[314994289,1708719056827,-1246.55,0.00029041,2]
[314994290,1708719056837,-500.0,0.00029041,2]
[314994291,1708719056846,-832.75,0.00029041,2]
[314994292,1708719056855,-1577.02,0.00029041,2]
[314994293,1708719056864,-894.62,0.00029041,2]
[314994294,1708719056874,-711.78,0.00029041,2]
[314994295,1708719056883,-896.26,0.00029041,2]
[314994296,1708719056893,-578.28,0.00029041,2]
[314994297,1708719056903,-2223.06,0.00029041,2]
[314994298,1708719056912,-640.46,0.00029041,2]
[314994299,1708719056922,-500.0,0.00029041,2]
[314994300,1708719056934,-500.0,0.00029041,2]
[314994301,1708719056943,-1048.34,0.00029041,2]
[314994302,1708719056953,-500.0,0.00029041,2]
[314994303,1708719056962,-1844.58,0.00029041,2]
[314994304,1708719056973,-1034.24,0.00029041,2]
[314994305,1708719056983,-500.0,0.00029041,2]
[314994306,1708719056992,-1226.41,0.00029041,2]
[314994307,1708719057000,-2164.75,0.00029041,2]
[314994308,1708719057010,-4390.56,0.00029041,2]
[314994309,1708719057020,-748.66,0.00029041,2]
[314994310,1708719057030,-677.35,0.00029041,2]
[314994311,1708719057039,-3249.67,0.00029064,2]
[314994312,1708719057048,-914.93,0.00029085,2]
[314994313,1708719057058,-500.0,0.00029178,2]
[314994314,1708719057067,-530.13,0.00029178,2]
[314994315,1708719057076,-216.96202189,0.00029178,2]
[314994316,1708719057085,-500.0,0.00029178,2]
[314994317,1708719057095,-749.44,0.00029178,2]
[314994318,1708719057105,-569.85,0.00029178,2]
[314994319,1708719057114,-792.79,0.00029178,2]
[314994320,1708719057124,-670.47,0.00029178,2]
[314994321,1708719057133,-620.91,0.00029178,2]
[314994322,1708719057142,-500.0,0.00029178,2]
[314994323,1708719057151,-637.71,0.00029178,2]
[314994324,1708719057160,-616.52,0.00029178,2]
[314994325,1708719057169,-783.78,0.00029178,2]
[314994326,1708719057178,-500.0,0.00029178,2]
[314994327,1708719057187,-1246.55,0.00029178,2]
[314994328,1708719057196,-500.0,0.00029178,2]
[314994329,1708719057205,-832.75,0.00029178,2]
[314994330,1708719057215,-1577.02,0.00029178,2]
[314994331,1708719057224,-894.62,0.00029178,2]
[314994332,1708719057234,-711.78,0.00029178,2]
[314994333,1708719057243,-896.26,0.00029178,2]
[314994334,1708719057253,-578.28,0.00029178,2]
[314994335,1708719057262,-2223.06,0.00029178,2]
[314994336,1708719057271,-640.46,0.00029178,2]
[314994337,1708719057281,-500.0,0.00029178,2]
[314994338,1708719057291,-480.23171651,0.00029178,2]
[314994339,1708719057301,-1048.34,0.00029178,2]
[314994340,1708719057310,-485.21258481,0.00029178,2]
[314994341,1708719057320,-1844.58,0.00029178,2]
[314994342,1708719057330,-1034.24,0.00029178,2]
[314994343,1708719057339,-500.0,0.00029178,2]
[314994344,1708719057348,-1226.41,0.00029178,2]
[314994345,1708719057358,-2164.75,0.00029178,2]
[314994346,1708719057367,-4390.56,0.00029178,2]
[314994347,1708719057376,-748.66,0.00029178,2]
[314994348,1708719057385,-677.35,0.00029178,2]
[314994349,1708719057395,-158.53,0.00029179,2]
[314994350,1708719057404,-500.0,0.00029313,2]
[314994351,1708719057413,-500.0,0.00029313,2]
[314994352,1708719057422,-500.0,0.00029313,2]
[314994353,1708719057432,-500.0,0.00029313,2]
[314994354,1708719057441,-318.33,0.00029313,2]
[314994355,1708719057450,-586.08855096,0.00029313,2]
[314994356,1708719057460,-500.0,0.00029314,2]
[314994357,1708719057469,-1000.0,0.00029314,7]
[314994358,1708719057478,-500.0,0.00029314,2]
[314994359,1708719057488,-500.0,0.00029314,2]
[314994360,1708719057496,-500.0,0.00029314,2]
[314994361,1708719057505,-500.0,0.00029314,2]
[314994362,1708719057514,-500.0,0.00029314,2]
[314994363,1708719057524,-500.0,0.00029314,2]
[314994364,1708719057533,-516.00983628,0.00029314,2]
[314994365,1708719057541,-500.0,0.00029314,2]
[314994366,1708719057550,-500.0,0.00029314,2]
[314994367,1708719057560,-500.0,0.00029314,2]
[314994368,1708719057569,-526.90554884,0.00029314,2]
[314994369,1708719057577,-500.0,0.00029314,2]
[314994370,1708719057586,-588.93837155,0.00029314,2]
[314994371,1708719057596,-500.0,0.00029314,2]
[314994372,1708719057606,-500.0,0.00029314,2]
[314994373,1708719057615,-500.0,0.00029314,2]
[314994374,1708719057624,-500.0,0.00029314,2]
[314994375,1708719057633,-500.0,0.00029314,2]
[314994376,1708719057642,-500.0,0.00029314,2]
[314994377,1708719057651,-500.0,0.00029314,2]
[314994378,1708719057660,-529.94451277,0.00029314,2]
[314994379,1708719057669,-522.03018914,0.00029314,2]
[314994380,1708719057678,-500.0,0.00029314,2]
[314994381,1708719057686,-500.0,0.00029314,2]
[314994382,1708719057695,-568.91777567,0.00029314,2]
[314994383,1708719057704,-500.0,0.00029314,2]
[314994384,1708719057713,-500.0,0.00029314,2]
[314994385,1708719057722,-523.64831472,0.00029314,2]
[314994386,1708719057731,-500.0,0.00029314,2]
[314994387,1708719057741,-600.97673879,0.00029314,2]
[314994388,1708719057750,-500.0,0.00029314,2]
[314994389,1708719057759,-500.0,0.00029314,2]
[314994390,1708719057768,-500.0,0.00029314,2]
[314994391,1708719057777,-509.91902597,0.00029314,2]
[314994392,1708719057785,-518.51072397,0.00029314,2]
[314994393,1708719057794,-515.87392645,0.00029314,2]
[314994394,1708719057803,-500.0,0.00029314,2]
[314994395,1708719057812,-500.0,0.00029314,2]
[314994396,1708719057821,-423.98475019,0.00029314,2]
[314994397,1708719057830,-500.0,0.00029314,2]
[314994398,1708719057838,-500.0,0.00029314,2]
[314994399,1708719057848,-500.0,0.00029314,2]
[314994400,1708719057857,-500.0,0.00029314,2]
[314994401,1708719057866,-549.33796035,0.00029314,2]
[314994402,1708719057875,-500.0,0.00029314,2]
[314994403,1708719057884,-500.0,0.00029314,2]
[314994404,1708719057894,-500.0,0.00029314,2]
[314994405,1708719057903,-500.0,0.00029314,2]
[314994406,1708719057912,-592.10407321,0.00029314,2]
[314994407,1708719057922,-500.0,0.00029314,2]
[314994408,1708719057933,-500.0,0.00029314,2]
[314994409,1708719057943,-530.26411858,0.00029314,2]
[314994410,1708719057952,-500.0,0.00029314,2]
[314994411,1708719057961,-500.0,0.00029314,2]
[314994412,1708719057972,-500.0,0.00029314,2]
[314994413,1708719057981,-500.0,0.00029314,2]
[314994414,1708719057990,-500.0,0.00029314,2]
[314994415,1708719058000,-500.0,0.00029314,2]
[314994416,1708719058009,-497.645855,0.00029314,2]
[314994417,1708719058019,-500.0,0.00029314,2]
[314994418,1708719058028,-500.0,0.00029314,2]
[314994419,1708719058037,-500.0,0.00029315,2]
[314994420,1708719058046,-530.13,0.00029315,2]
[314994421,1708719058054,-500.0,0.00029315,2]
[314994422,1708719058063,-749.44,0.00029315,2]
[314994423,1708719058073,-569.85,0.00029315,2]
[314994424,1708719058082,-792.79,0.00029315,2]
[314994425,1708719058091,-670.47,0.00029315,2]
[314994426,1708719058100,-620.91,0.00029315,2]
[314994427,1708719058109,-500.0,0.00029315,2]
[314994428,1708719058118,-637.71,0.00029315,2]
[314994429,1708719058127,-616.52,0.00029315,2]
[314994430,1708719058136,-783.78,0.00029315,2]
[314994431,1708719058145,-191.87306057,0.00029315,2]
[314994432,1708719058154,-1246.55,0.00029315,2]
[314994433,1708719058163,-500.0,0.00029315,2]
[314994434,1708719058172,-832.75,0.00029315,2]
[314994435,1708719058182,-1577.02,0.00029315,2]
[314994436,1708719058191,-894.62,0.00029315,2]
[314994437,1708719058200,-711.78,0.00029315,2]
[314994438,1708719058210,-896.26,0.00029315,2]
[314994439,1708719058219,-578.28,0.00029315,2]
[314994440,1708719058228,-2223.06,0.00029315,2]
[314994441,1708719058239,-640.46,0.00029315,2]
[314994442,1708719058248,-500.0,0.00029315,2]
[314994443,1708719058257,-1048.34,0.00029315,2]
[314994444,1708719058266,-1844.58,0.00029315,2]
[314994445,1708719058276,-1034.24,0.00029315,2]
[314994446,1708719058285,-374.70000001,0.00029315,2]
[314994447,1708719058295,-1226.41,0.00029315,2]
[314994448,1708719058304,-2164.75,0.00029315,2]
[314994449,1708719058314,-4390.56,0.00029315,2]
[314994450,1708719058323,-748.66,0.00029315,2]
[314994451,1708719058332,-677.35,0.00029315,2]
[314994452,1708719058341,-500.0,0.0002945,2]
[314994453,1708719058351,-500.0,0.0002945,2]
[314994454,1708719058360,-500.0,0.0002945,2]
[314994455,1708719058369,-475.0,0.00029451,2]
[314994456,1708719058378,-1000.0,0.00029451,7]
[314994457,1708719058387,-500.0,0.00029451,2]
[314994458,1708719058396,-500.0,0.00029451,2]
[314994459,1708719058405,-500.0,0.00029451,2]
[314994460,1708719058415,-500.0,0.00029451,2]
[314994461,1708719058424,-592.04569112,0.00029451,2]
[314994462,1708719058433,-500.0,0.00029451,2]
[314994463,1708719058442,-500.0,0.00029451,2]
[314994464,1708719058451,-521.99089622,0.00029451,2]
[314994465,1708719058460,-523.46252412,0.00029451,2]
[314994466,1708719058469,-500.0,0.00029451,2]
[314994467,1708719058479,-500.0,0.00029451,2]
[314994468,1708719058488,-500.0,0.00029451,2]
[314994469,1708719058498,-500.0,0.00029451,2]
[314994470,1708719058506,-470.87487631,0.00029451,2]
[314994471,1708719058515,-500.0,0.00029451,2]
[314994472,1708719058525,-500.0,0.00029451,2]
[314994473,1708719058533,-500.0,0.00029451,2]
[314994474,1708719058542,-500.0,0.00029452,2]
[314994475,1708719058551,-530.13,0.00029452,2]
[314994476,1708719058560,-500.0,0.00029452,2]
[314994477,1708719058569,-749.44,0.00029452,2]
[314994478,1708719058578,-569.85,0.00029452,2]
[314994479,1708719058588,-792.79,0.00029452,2]
[314994480,1708719058597,-670.47,0.00029452,2]
[314994481,1708719058608,-620.91,0.00029452,2]
[314994482,1708719058617,-500.0,0.00029452,2]
[314994483,1708719058626,-637.71,0.00029452,2]
[314994484,1708719058635,-616.52,0.00029452,2]
[314994485,1708719058644,-783.78,0.00029452,2]
[314994486,1708719058653,-1246.55,0.00029452,2]
[314994487,1708719058662,-500.0,0.00029452,2]
[314994488,1708719058671,-832.75,0.00029452,2]
[314994489,1708719058680,-1577.02,0.00029452,2]
[314994490,1708719058690,-894.62,0.00029452,2]
[314994491,1708719058699,-711.78,0.00029452,2]
[314994492,1708719058708,-896.26,0.00029452,2]
[314994493,1708719058717,-578.28,0.00029452,2]
[314994494,1708719058727,-2223.06,0.00029452,2]
[314994495,1708719058736,-640.46,0.00029452,2]
[314994496,1708719058745,-500.0,0.00029452,2]
[314994497,1708719058754,-1048.34,0.00029452,2]
[314994498,1708719058763,-1844.58,0.00029452,2]
[314994499,1708719058772,-1034.24,0.00029452,2]
[314994500,1708719058781,-1226.41,0.00029452,2]
[314994501,1708719058791,-2164.75,0.00029452,2]
[314994502,1708719058801,-4390.56,0.00029452,2]
[314994503,1708719058810,-748.66,0.00029452,2]
[314994504,1708719058820,-677.35,0.00029452,2]
[314994505,1708719058829,-223.814295,0.00029485,2]
[314994506,1708719058838,-152.546292,0.00029485,2]
[314994507,1708719058847,-155.007164,0.00029485,2]
[314994508,1708719058856,-186.511912,0.00029485,2]
[314994509,1708719058865,-156.90607,0.00029485,2]
[314994510,1708719058874,-169.495879,0.00029485,2]
[314994511,1708719058883,-158.84317,0.00029485,2]
[314994512,1708719058893,-438.59060177,0.000295,3]
[314994513,1708719058901,-500.0,0.00029587,2]
[314994514,1708719058910,-500.0,0.00029587,2]
[314994515,1708719058919,-500.0,0.00029587,2]
[314994516,1708719058930,-1000.0,0.00029588,7]
[314994517,1708719058940,-500.0,0.00029588,2]
[314994518,1708719058949,-500.0,0.00029588,2]
[314994519,1708719058958,-500.0,0.00029588,2]
[314994520,1708719058967,-500.0,0.00029589,2]
[314994521,1708719058977,-530.13,0.00029589,2]
[314994522,1708719058986,-290.88,0.00029589,2]
[314994523,1708719058995,-749.44,0.00029589,2]
[314994524,1708719059006,-569.85,0.00029589,2]
[314994525,1708719059015,-792.79,0.00029589,2]
[314994526,1708719059025,-670.47,0.00029589,2]
[314994527,1708719059035,-620.91,0.00029589,2]
[314994528,1708719059045,-500.0,0.00029589,2]
[314994529,1708719059054,-637.71,0.00029589,2]
[314994530,1708719059063,-616.52,0.00029589,2]
[314994531,1708719059072,-783.78,0.00029589,2]